Workbook

Sheet 제휴 과목 할인가
A2: [2025학년도 대학 제휴 할인]
A4: 과목 | B4: 강사 | C4: 할인률 | D4: 유형 | E4: 강의명 | F4: 판매가 | G4: 제휴 할인가 | H4: 과목 | I4: 강사 | J4: 할인률 | K4: 할인률 | L4: 강의명 | M4: 판매가 | N4: 제휴 할인가
A5: 유아 | B5: 박수민 | C5: 0.2 | D5: 단과 | E5: 1~2월 유아 교육개론반 | F5: 340000 | G5: =F5-F5*C5 -> 272000 | H5: 음악 | I5: 이미정 | J5: 0.2 | K5: 단과 | L5: 음악 1~2월 기본이론반 | M5: 380000 | N5: =M5-M5*J5 -> 304000
C6: 0.2 | D6: 단과 | E6: 3~4월 유아 누리과정반I | F6: 340000 | G6: 272000 | J6: 0.2 | K6: 단과 | L6: 음악 1~2월 화성학 1단계 | M6: 380000 | N6: 304000
C7: 0.1 | D7: 패키지 | E7: 2025 유아 박수민 3~6월 누리과정반 패키지 | F7: 646000 | G7: 581400 | J7: 0.2 | K7: 단과 | L7: 음악 3~6월 심화이론반 | M7: 720000 | N7: 576000
C8: 0.1 | D8: 패키지 | E8: 2025 유아 박수민 연간패키지 | F8: 2016000 | G8: =F8-F8*C8 -> 1814400 | J8: 0.1 | K8: 패키지 | L8: 2025 음악 이미정 1~2월 패키지 | M8: 684000 | N8: =M8-M8*J8 -> 615600
C9: 0.1 | D9: 패키지 | E9: 2025 유아 박수민 교육과정 패키지 | F9: 1620000 | G9: 1458000 | J9: 0.1 | K9: 패키지 | L9: 2025 음악 이미정 연간 패키지 | M9: 2080000 | N9: 1872000
A10: 교육학 | B10: 윤승현 | D10: 패키지 | E10: [패키지] 2025 윤승현 교육학 80강 완성 패키지 | G10: 250000 | J10: 0.1 | K10: 패키지 | L10: 2025 음악 이미정 3~11월 패키지 | M10: 1656000 | N10: 1490400
B11: 한이수 | C11: 0.3 | D11: 단과 | E11: 수(秀) 교육학 1~2월 기초 이론반 | F11: 340000 | G11: =F11-F11*C11 -> 238000 | I11: 김남주 (화성학) | J11: 0.4 | K11: 단과 | L11: [화성학 2단계-1] 기초화성 꼼꼼반 | M11: 200000 | N11: 120000
C12: 0.3 | D12: 단과 | E12: 수(秀) 교육학 3~4월 심화 이론반 | F12: 340000 | G12: =F12-F12*C12 -> 238000 | J12: 0.3 | K12: 패키지 | L12: 2024 김남주 화성학 패키지 | M12: 560000 | N12: 392000
C13: 0.1 | D13: 패키지 | E13: 2025 한이수 교육학 연간 패키지 | F13: 1400000 | G13: 1260000 | I13: 김남주 (시창·청음) | J13: 0.4 | K13: 단과 | L13: 김남주 청음 초급반 | M13: 160000 | N13: 96000
C14: 0.1 | D14: 패키지 | E14: 2025 한이수 교육학 상반기 패키지 | F14: 918000 | G14: =F14-F14*C14 -> 826200 | H14: 미술 | I14: 장동익 | J14: 0.3 | K14: 단과 | L14: 미술 1~2월 기초 마인드맵 뼈대 세우기반 | M14: 380000 | N14: =M14-M14*J14 -> 266000
C15: 0.1 | D15: 패키지 | E15: 2025 한이수 교육학 3~11월 패키지 | F15: 1198500 | G15: 1078650 | J15: 0.3 | K15: 단과 | L15: 미술 3~4월 전공 심화 뿌리 뽑기+되새김 백지쓰기 | M15: 450000 | N15: =M15-M15*J15 -> 315000
B16: 이지원 | C16: 0.2 | D16: 단과 | E16: 1~2월 START ONE SHOT반 | F16: 360000 | G16: 288000 | J16: 0.1 | K16: 패키지 | L16: 2025 미술 장동익 연간 패키지 | M16: 1952000 | N16: =M16-M16*J16 -> 1756800
C17: 0.2 | D17: 단과 | E17: 3~4월 Master One Shot반 | F17: 360000 | G17: =F17-F17*C17 -> 288000 | J17: 0.1 | K17: 패키지 | L17: 2025 미술 장동익 3~11월 패키지 | M17: 1751000 | N17: =M17-M17*J17 -> 1575900
C18: 0.1 | D18: 패키지 | E18: 2025 이지원 EOS 교육학 연간패키지 | F18: 1472000 | G18: 1324800 | H18: 체육 | I18: 김형규 | J18: 0.3 | K18: 단과 | L18: 체육 1~2월 이론총정리반(체육과 교육학) | M18: 340000 | N18: =M18-(M18*J18) -> 238000
C19: 0.1 | D19: 패키지 | E19: 2025 이지원 EOS 교육학 상반기 패키지 | F19: 972000 | G19: =F19-F19*C19 -> 874800 | J19: 0.3 | K19: 단과 | L19: 체육 3~4월 이론총정리반(체육과 내용학) | M19: 380000 | N19: 266000
C20: 0.1 | D20: 패키지 | E20: 2025 이지원 EOS 교육학 3~11월 패키지 | F20: 1258000 | G20: 1132200 | J20: 0.1 | K20: 패키지 | L20: 2025 체육 김형규 1~4월 이론 총정리 패키지 | M20: 648000 | N20: 583200
A21: 영어 | B21: 조셉신 | C21: 0.2 | D21: 패키지 | E21: 2025 영어 조셉신 1~2월 개념 완성반 | F21: 450000 | G21: 360000 | J21: 0.1 | K21: 패키지 | L21: 2025 체육 김형규 연간 패키지 | M21: 1504000 | N21: 1353600
C22: 0.2 | D22: 패키지 | E22: 2025 영어 조셉신 3~4월 유효 답안쓰기 연습반 | F22: 450000 | G22: =F22-F22*C22 -> 360000 | H22: 전문상담 | I22: 루시아 | J22: 0.2 | K22: 단과 | L22: 1~2월 전문상담 종합이론I | M22: 360000 | N22: 288000
C23: 0.1 | D23: 패키지 | E23: 2025 영어 조셉신 연간 패키지 | F23: 2108000 | G23: 1897200 | J23: 0.2 | K23: 단과 | L23: 3~4월 전문상담 종합이론II | M23: 360000 | N23: =M23-(M23*J23) -> 288000
C24: 0.1 | D24: 패키지 | E24: 2025 영어 조셉신 3~11월 패키지 | F24: 1827000 | G24: 1644300 | J24: 0.1 | K24: 패키지 | L24: 2025 전문상담 루시아 상반기 패키지(이론) | M24: 918000 | N24: 826200
C25: 0.1 | D25: 패키지 | E25: 2025 영어 조셉신 이론개념 마스터 패키지 | F25: 1215000 | G25: 1093500 | J25: 0.1 | K25: 패키지 | L25: 2025 전문상담 루시아 연간패키지 | M25: 1504000 | N25: 1353600
C26: 0.1 | D26: 패키지 | E26: 2025 영어 조셉신 상반기 패키지 | F26: 1100000 | G26: 990000 | H26: 정보컴퓨터 | I26: 스티브 | J26: 0.2 | K26: 단과 | L26: 정보컴퓨터 1~2월 기본서 완전정복반 I | M26: 550000 | N26: 440000
B27: 일영/문학 김수아 | C27: 0.2 | D27: 단과 | E27: 김수아 1~2월 일영/문학 기본 ALL-CARE 담임반 | F27: 200000 | G27: 160000 | J27: 0.2 | K27: 단과 | L27: 정보컴퓨터 3~4월 기본서 완전정복반 II | M27: 550000 | N27: =M27-(M27*J27) -> 440000
C28: 0.2 | D28: 단과 | E28: 김수아 3~4월 일영/문학 심화 ALL-CARE 담임반 | F28: 200000 | G28: =F28-F28*C28 -> 160000 | J28: 0.1 | K28: 패키지 | L28: 2025 정보컴퓨터 스티브 1~4월 패키지 | M28: 1000000 | N28: =M28-(M28*J28) -> 900000
C29: 0.1 | D29: 패키지 | E29: 일영/문학 김수아 1-11월 연간패키지 | F29: 1160000 | G29: 1044000 | J29: 0.1 | K29: 패키지 | L29: 2024 정보컴퓨터 스티브 연간 패키지 | M29: 2240000 | N29: =M29-(M29*J29) -> 2016000
C30: 0.1 | D30: 패키지 | E30: 일영/문학 김수아 상반기 패키지 | F30: 540000 | G30: 486000 | H30: 특수 | I30: 최한솔 | J30: 0.3 | K30: 단과 | L30: 1~3월 초등특수 완벽이론반 | M30: 390000 | N30: =M30-M30*J30 -> 273000
B31: 영어학 최진호 | C31: 0.2 | D31: 단과 | E31: 최진호 1~2월 영어학 기본이론반 | F31: 200000 | G31: 160000 | J31: 0.3 | K31: 단과 | L31: 1~3월 중등특수 완벽이론반 | M31: 390000 | N31: =M31-M31*J31 -> 273000
C32: 0.2 | D32: 단과 | E32: 최진호 3~4월 영어학 심화이론반 | F32: 200000 | G32: =F32-F32*C32 -> 160000 | J32: 0.3 | K32: 단과 | L32: 3~4월 초등특수 기출분석을 통한 이론완성반1 | M32: 340000 | N32: =M32-M32*J32 -> 238000
C33: 0.1 | D33: 패키지 | E33: 영어학 최진호 1-11월 연간패키지 | F33: 1160000 | G33: 1044000 | J33: 0.3 | K33: 단과 | L33: 3~4월 중등특수 기출분석을 통한 이론완성반1 | M33: 340000 | N33: =M33-M33*J33 -> 238000
C34: 0.1 | D34: 패키지 | E34: 영어학 최진호 상반기 패키지 | F34: 540000 | G34: 486000 | J34: 0.1 | K34: 패키지 | L34: 2025 초특 최한솔 연간 패키지 | M34: 1440000 | N34: =M34-M34*J34 -> 1296000
B35: 영어교육학 최시원 | C35: 0.2 | D35: 단과 | E35: 최시원 1~3월 영어교육학 이론반 | F35: 250000 | G35: 200000 | J35: 0.1 | K35: 패키지 | L35: 2025 중특 최한솔 연간 패키지 | M35: 1440000 | N35: 1296000
C36: 0.1 | D36: 패키지 | E36: 영어교육학 최시원 1-11월 연간패키지 | F36: 1160000 | G36: 1044000 | J36: 0.1 | K36: 패키지 | L36: 2025 초특 최한솔 3~11월 패키지 | M36: 1200000 | N36: =M36-M36*J36 -> 1080000
B37: 김수아 & 최진호 & 최시원 | C37: 0.1 | D37: 패키지 | E37: 일영/문학 + 영어학 연간패키지 | F37: 1856000 | G37: 1670400 | J37: 0.1 | K37: 패키지 | L37: 2025 중특 최한솔 3~11월 패키지 | M37: 1200000 | N37: =M37-M37*J37 -> 1080000
C38: 0.1 | D38: 패키지 | E38: 일영/문학 + 영어교육학 연간패키지 | F38: 1856000 | G38: 1670400 | J38: 0.1 | K38: 패키지 | L38: 2025 초특 최한솔 3~6월 패키지 | M38: 612000 | N38: 550800
C39: 0.1 | D39: 패키지 | E39: 영어학 + 영어교육학 연간패키지 | F39: 1856000 | G39: 1670400 | J39: 0.1 | K39: 패키지 | L39: 2025 중특 최한솔 3~6월 패키지 | M39: 612000 | N39: =M39-M39*J39 -> 550800
C40: 0.1 | D40: 패키지 | E40: 일영/문학 + 영어학 + 영어교육론 연간패키지 | F40: 2262000 | G40: 2035800
A41: ▶ 전공 연간패키지 결제 시, 한이수 교육학 or 이지원 교육학 연간 패키지 1,000,000원 결제 가능합니다. (~24.6.30까지) - 전공 연간 패키지 결제 후, 1:1문의게시판에 내용 남겨주시면 쿠폰 발급해드립니다.

Sheet 취합 양식
A1: 신청자 정보(필수 기재) | F1: 강의정보(필수 기재) | M1: 추가요청(무통장 입금시에만 작성)
A2: 학교명 | B2: 학번 | C2: 임용닷컴 ID | D2: 이름 | E2: 연락처 | F2: 인/직강 | G2: 강사 | H2: 신청강의 | I2: 결제방법 | J2: 판매가 | K2: 할인율 | L2: 할인가 | M2: 소득공제용 번호 | N2: 비고
A3: 임용대 | B3: 3215844 | C3: imyong | D3: 임용 | E3: 010-1111-2222 | F3: 인강 | G3: 김형규 | H3: 2025 전공체육 연간패키지 | I3: 카드 | K3: 0.1 | L3: =J3-J3*K3 -> 0 | M3: 010-4444-5555 | N3: 예시
L5: =J5-J5*K5 -> 0
L6: 0
A8: * 취합 담당자분께서는 위 양식에 맞게 취합 부탁드립니다. * 강의 신청 수요에 따라 주단위, 혹은 일단위로 편의에 맞게 전달(imyonggosi@naver.com) 부탁드립니다. * 결제는 할인가 기준으로 이루어지며 결제 방법은 무통장(입금), 카드(쿠폰지급) 2가지 이며 신청하신 방법에 따라 각각 문자로 안내드립니다. * 무통장 입금 후 현금영수증 발급을 원하시는 경우 상단 항목 중 '추가요청'란 기입 부탁드립니다. * 신청자 정보와 강의 정보를 모두 기입하지 않을 시, 할인 안내가 어려우니 필히 작성 부탁드립니다.
